Workbook

Sheet АНАЛИЗ
D2: NO_Ru_Ригла | E2: NO_Ru_Ригла | F2: NO_Ru_Ригла | G2: NO_Ru_Ригла | H2: NO_Ru_Ригла | I2: NO_Ru_Ригла | J2: NO_Ru_Ригла | K2: NO_Ru_Ригла | L2: NO_Ru_Ригла | M2: NO_Ru_Ригла | N2: NO_Ru_Ригла | O2: NO_Ru_Ригла | P2: NO_Ru_Ригла
D3: NO_Ru_Ригла | E3: NO_Ru_Ригла
C4: NO_Ru_Ригла | D4: Итого 2017 | E4: январь | F4: февраль | G4: март | H4: апрель | I4: май | J4: июнь | K4: июль | L4: август | M4: сентябрь | N4: октябрь | O4: ноябрь | P4: декабрь
A5: Артикул | B5: наименование | E5: =color_count(E$6:E$22;$A$2) | F5: =color_count(F$6:F$22,$A$2) -> 0 | H5: =color_count(H$6:H$22,$A$2) -> 0 | I5: =color_count(I$6:I$22,$A$2) -> 0 | J5: =color_count(J$6:J$22,$A$2) -> 0 | K5: =color_count(K$6:K$22,$A$2) -> 0 | L5: =color_count(L$6:L$22,$A$2) -> 0 | M5: =color_count(M$6:M$22,$A$2) -> 0 | N5: =color_count(N$6:N$22,$A$2) -> 0 | O5: =color_count(O$6:O$22,$A$2) -> 0 | P5: =color_count(P$6:P$22,$A$2) -> 0
A6: Б-114 | B6: яблоко | C6: 1 | D6: 8278 | E6: 1392 | F6: 1500 | G6: 1315 | H6: 1343 | I6: 1366 | J6: 1362
A7: А-113 | B7: банан | C7: 1 | D7: =IF((SUM(E7:P7))=0,"",SUM(E7:P7)) -> 3460 | E7: 768 | F7: 725 | H7: 601 | I7: 695 | J7: 671
A8: О-120 | B8: киви | C8: 1 | D8: =IF((SUM(E8:P8))=0,"",SUM(E8:P8)) -> 7303 | E8: 1270 | F8: 1021 | G8: 1294 | H8: 1265 | I8: 1180 | J8: 1273
A9: ЛТ-116 | B9: чебурашка | C9: 1 | D9: =IF((SUM(E9:P9))=0,"",SUM(E9:P9)) -> 7030 | E9: 1214 | F9: 1266 | G9: 1131 | H9: 1170 | I9: 1089 | J9: 1160
A10: У-115 | B10: гена | C10: 1 | D10: =IF((SUM(E10:P10))=0,"",SUM(E10:P10)) -> 5616 | E10: 936 | F10: 984 | G10: 1050 | H10: 894 | I10: 842 | J10: 910
A11: АК-129 | B11: машина | C11: 1 | D11: =IF((SUM(E11:P11))=0,"",SUM(E11:P11)) -> 897 | E11: 166 | F11: 233 | G11: 146 | H11: 155 | I11: 98 | J11: 99
A12: АР-118 | B12: ручка | C12: 1 | D12: =IF((SUM(E12:P12))=0,"",SUM(E12:P12)) -> 774 | E12: 154 | F12: 242 | H12: 121 | I12: 128 | J12: 129
A13: З-117 | B13: книжка | C13: 1 | D13: =IF((SUM(E13:P13))=0,"",SUM(E13:P13)) -> 1722 | E13: 282 | F13: 419 | G13: 220 | H13: 276 | I13: 233 | J13: 292
A14: ЛГ-119 | B14: клавиатура | C14: 1 | D14: =IF((SUM(E14:P14))=0,"",SUM(E14:P14)) -> 1559 | E14: 286 | F14: 328 | G14: 248 | H14: 239 | I14: 239 | J14: 219
A15: МК-149 | B15: ноут | C15: 1 | D15: =IF((SUM(E15:P15))=0,"",SUM(E15:P15)) -> 1174 | E15: 205 | F15: 295 | G15: 160 | H15: 162 | I15: 164 | J15: 188
A16: ЛВ-183 | B16: чашка | C16: 1 | D16: =IF((SUM(E16:P16))=0,"",SUM(E16:P16)) -> 1238 | E16: 214 | F16: 299 | G16: 219 | H16: 198 | I16: 153 | J16: 155
A17: ПС-195 | B17: стол | C17: 1 | D17: =IF((SUM(E17:P17))=0,"",SUM(E17:P17)) -> 2306 | E17: 388 | F17: 500 | G17: 300 | H17: 357 | I17: 357 | J17: 404
A18: КА-172 | B18: стул | C18: 0 | D18: =IF((SUM(E18:P18))=0,"",SUM(E18:P18)) -> 1028 | E18: 218 | F18: 129 | H18: 235 | I18: 200 | J18: 246
A19: КБ-173 | B19: нитки | C19: 0 | D19: =IF((SUM(E19:P19))=0,"",SUM(E19:P19)) -> 2324 | E19: 387 | F19: 370 | G19: 411 | H19: 276 | I19: 442 | J19: 438
A20: КЛ-171 | B20: ткань | C20: 0 | D20: =IF((SUM(E20:P20))=0,"",SUM(E20:P20)) -> 1454 | E20: 244 | F20: 208 | G20: 268 | H20: 227 | I20: 239 | J20: 268
A21: КО-175 | B21: слон | C21: 0 | D21: =IF((SUM(E21:P21))=0,"",SUM(E21:P21)) -> 1862 | E21: 313 | F21: 281 | G21: 303 | H21: 285 | I21: 321 | J21: 359
A22: КУ-174 | B22: корова | C22: 0 | D22: =IF((SUM(E22:P22))=0,"",SUM(E22:P22)) -> 2275 | E22: 385 | F22: 307 | G22: 332 | H22: 337 | I22: 440 | J22: 474
